[Event "Titled Tuesday Blitz January 17 Early 2023"]
[White "Qashashvili, Alexandre"]
[Black "Wagner, Dennis"]
[WhiteFideId "13600842"]
[BlackFideId "24650684"]
[WhiteElo "2505"]
[BlackElo "2595"]
[Result "1/2-1/2"]
[Round "01"]
[TimeControl "180+2"]
[Date "2023.01.17"]
[WhiteClock "0:00:21"]
[BlackClock "0:00:43"]

1. e4 {[%clk 0:02:30]}  c5 {[%clk 0:02:58]} 2. Nc3 {[%clk 0:02:29]}  d6 {[%clk 0:02:56]} 3. Nf3 {[%clk 0:02:30]}  Nf6 {[%clk 0:02:56]} 4. Bb5+ {[%clk 0:02:30]}  Bd7 {[%clk 0:02:54]} 5. Bxd7+ {[%clk 0:02:29]}  Qxd7 {[%clk 0:02:51]} 6. d4 {[%clk 0:02:30]}  cxd4 {[%clk 0:02:51]} 7. Nxd4 {[%clk 0:02:29]}  Nc6 {[%clk 0:02:49]} 8. Nxc6 {[%clk 0:02:29]}  bxc6 {[%clk 0:02:49]} 9. O-O {[%clk 0:02:29]}  g6 {[%clk 0:02:49]} 10. Be3 {[%clk 0:02:29]}  Bg7 {[%clk 0:02:49]} 11. Qd2 {[%clk 0:02:29]}  O-O {[%clk 0:02:47]} 12. Bh6 {[%clk 0:02:29]}  Rfb8 {[%clk 0:02:45]} 13. Bxg7 {[%clk 0:02:29]}  Kxg7 {[%clk 0:02:46]} 14. b3 {[%clk 0:02:29]}  a5 {[%clk 0:02:45]} 15. Qd4 {[%clk 0:02:27]}  Rb4 {[%clk 0:02:44]} 16. Qd3 {[%clk 0:02:26]}  Qe6 {[%clk 0:02:43]} 17. Rfe1 {[%clk 0:02:23]}  Ng4 {[%clk 0:02:36]} 18. h3 {[%clk 0:02:21]}  Ne5 {[%clk 0:02:35]} 19. Qe2 {[%clk 0:02:20]}  Qf6 {[%clk 0:02:32]} 20. Rad1 {[%clk 0:02:07]}  h5 {[%clk 0:02:31]} 21. Qe3 {[%clk 0:02:04]}  g5 {[%clk 0:02:26]} 22. Ne2 {[%clk 0:02:01]}  h4 {[%clk 0:02:18]} 23. Nd4 {[%clk 0:02:00]}  Qf4 {[%clk 0:01:22]} 24. Qxf4 {[%clk 0:01:45]}  gxf4 {[%clk 0:01:23]} 25. Nf5+ {[%clk 0:01:45]}  Kf6 {[%clk 0:01:24]} 26. Nxh4 {[%clk 0:01:45]}  Rg8 {[%clk 0:01:23]} 27. Kf1 {[%clk 0:01:43]}  Rh8 {[%clk 0:01:14]} 28. Nf5 {[%clk 0:01:39]}  c5 {[%clk 0:01:14]} 29. f3 {[%clk 0:01:16]}  a4 {[%clk 0:01:14]} 30. Kf2 {[%clk 0:01:11]}  Rb6 {[%clk 0:01:13]} 31. Rd2 {[%clk 0:01:03]}  axb3 {[%clk 0:01:11]} 32. axb3 {[%clk 0:01:02]}  Ra8 {[%clk 0:01:11]} 33. Red1 {[%clk 0:01:02]}  Ra2 {[%clk 0:01:11]} 34. g4 {[%clk 0:00:53]}  fxg3+ {[%clk 0:01:00]} 35. Kxg3 {[%clk 0:00:52]}  Rb8 {[%clk 0:01:01]} 36. Rxd6+ {[%clk 0:00:44]}  e6 {[%clk 0:00:53]} 37. Ne3 {[%clk 0:00:36]}  Rg8+ {[%clk 0:00:52]} 38. Ng4+ {[%clk 0:00:36]}  Nxg4 {[%clk 0:00:47]} 39. hxg4 {[%clk 0:00:28]}  Rxc2 {[%clk 0:00:48]} 40. R1d2 {[%clk 0:00:28]}  Rc3 {[%clk 0:00:48]} 41. R6d3 {[%clk 0:00:28]}  Rxd3 {[%clk 0:00:48]} 42. Rxd3 {[%clk 0:00:28]}  Rb8 {[%clk 0:00:48]} 43. Rc3 {[%clk 0:00:27]}  e5 {[%clk 0:00:46]} 44. Kf2 {[%clk 0:00:25]}  Rb5 {[%clk 0:00:44]} 45. Ke3 {[%clk 0:00:25]}  Ke6 {[%clk 0:00:44]} 46. Kd3 {[%clk 0:00:22]}  Kd6 {[%clk 0:00:45]} 47. Kc4 {[%clk 0:00:21]}  Rb4+ {[%clk 0:00:45]} 48. Kd3 {[%clk 0:00:21]}  f6 {[%clk 0:00:44]} 49. Ke3 {[%clk 0:00:21]}  Rb5 {[%clk 0:00:43]} 50. Rd3+ {[%clk 0:00:21]}  Ke6 {[%clk 0:00:43]} 51. Kf2 {[%clk 0:00:21]}  Rb4 {[%clk 0:00:43]} 52. Kg2 {[%clk 0:00:21]}  c4 {[%clk 0:00:43]} 53. bxc4 {[%clk 0:00:20]}  Rxc4 {[%clk 0:00:44]} 54. Kg3 {[%clk 0:00:21]}  Rc1 {[%clk 0:00:44]} 55. Ra3 {[%clk 0:00:21]}  Rg1+ {[%clk 0:00:43]} 56. Kf2 {[%clk 0:00:21]}  Rb1 {[%clk 0:00:44]} 57. Ra6+ {[%clk 0:00:21]}  Kf7 {[%clk 0:00:45]} 58. Kg3 {[%clk 0:00:22]}  Kg6 {[%clk 0:00:44]} 59. Ra8 {[%clk 0:00:22]}  Rb2 {[%clk 0:00:44]} 60. Kh4 {[%clk 0:00:22]}  Rh2+ {[%clk 0:00:42]} 61. Kg3 {[%clk 0:00:22]}  Rb2 {[%clk 0:00:43]} 62. Rg8+ {[%clk 0:00:22]}  Kf7 {[%clk 0:00:43]} 63. Rh8 {[%clk 0:00:22]}  Kg7 {[%clk 0:00:43]} 64. Ra8 {[%clk 0:00:21]}  Kg6 {[%clk 0:00:43]} 1/2-1/2


[Site "https://www.chess.com"]

[Event "Titled Tuesday Blitz January 17 Early 2023"]
[White "Boyer, Mahel"]
[Black "Gressmann, Moritz"]
[WhiteFideId "45102422"]
[BlackFideId "24695084"]
[WhiteElo "2489"]
[BlackElo "2129"]
[Result "1-0"]
[Round "01"]
[TimeControl "180+2"]
[Date "2023.01.17"]
[WhiteClock "0:02:05"]
[BlackClock "0:01:40"]

1. d4 {[%clk 0:02:58]}  Nf6 {[%clk 0:02:58]} 2. Nf3 {[%clk 0:02:58]}  e6 {[%clk 0:02:57]} 3. e3 {[%clk 0:02:58]}  d5 {[%clk 0:02:57]} 4. Bd3 {[%clk 0:02:59]}  c5 {[%clk 0:02:57]} 5. O-O {[%clk 0:02:59]}  Nc6 {[%clk 0:02:57]} 6. b3 {[%clk 0:02:59]}  Bd6 {[%clk 0:02:53]} 7. Bb2 {[%clk 0:02:58]}  cxd4 {[%clk 0:02:54]} 8. exd4 {[%clk 0:02:58]}  O-O {[%clk 0:02:53]} 9. Nbd2 {[%clk 0:02:58]}  Qc7 {[%clk 0:02:53]} 10. a3 {[%clk 0:02:57]}  e5 {[%clk 0:02:49]} 11. dxe5 {[%clk 0:02:56]}  Nxe5 {[%clk 0:02:50]} 12. Nxe5 {[%clk 0:02:56]}  Bxe5 {[%clk 0:02:50]} 13. Bxe5 {[%clk 0:02:57]}  Qxe5 {[%clk 0:02:51]} 14. Nf3 {[%clk 0:02:58]}  Qh5 {[%clk 0:02:51]} 15. h3 {[%clk 0:02:57]}  Be6 {[%clk 0:02:46]} 16. Nd4 {[%clk 0:02:52]}  Qe5 {[%clk 0:02:39]} 17. Re1 {[%clk 0:02:51]}  Qd6 {[%clk 0:02:34]} 18. Qf3 {[%clk 0:02:51]}  Rfe8 {[%clk 0:02:14]} 19. a4 {[%clk 0:02:29]}  Rad8 {[%clk 0:02:12]} 20. Re3 {[%clk 0:02:12]}  Qc5 {[%clk 0:02:04]} 21. Qf4 {[%clk 0:02:11]}  Qc3 {[%clk 0:01:42]} 22. Rae1 {[%clk 0:02:10]}  Ne4 {[%clk 0:01:42]} 23. Bxe4 {[%clk 0:02:08]}  dxe4 {[%clk 0:01:41]} 24. Rxc3 {[%clk 0:02:08]}  Rxd4 {[%clk 0:01:40]} 25. Rxe4 {[%clk 0:02:05]} 1-0


[Site "https://www.chess.com"]

[Event "Titled Tuesday Blitz January 17 Early 2023"]
[White "Silva, Caio Henrique Angelico"]
[Black "Sipila, Vilka"]
[WhiteFideId "22777210"]
[BlackFideId "505455"]
[WhiteElo "2129"]
[BlackElo "2427"]
[Result "0-1"]
[Round "01"]
[TimeControl "180+2"]
[Date "2023.01.17"]
[WhiteClock "0:00:05"]
[BlackClock "0:00:28"]

1. Nf3 {[%clk 0:02:54]}  f5 {[%clk 0:02:59]} 2. g3 {[%clk 0:02:51]}  Nf6 {[%clk 0:03:00]} 3. Bg2 {[%clk 0:02:52]}  g6 {[%clk 0:03:00]} 4. O-O {[%clk 0:02:53]}  Bg7 {[%clk 0:03:01]} 5. b3 {[%clk 0:02:52]}  O-O {[%clk 0:03:01]} 6. Bb2 {[%clk 0:02:52]}  d6 {[%clk 0:03:02]} 7. d4 {[%clk 0:02:52]}  c6 {[%clk 0:03:02]} 8. c4 {[%clk 0:02:52]}  Na6 {[%clk 0:03:02]} 9. Nc3 {[%clk 0:02:50]}  Qe8 {[%clk 0:02:59]} 10. d5 {[%clk 0:02:47]}  e5 {[%clk 0:02:35]} 11. dxe6 {[%clk 0:02:40]}  Bxe6 {[%clk 0:02:34]} 12. Qxd6 {[%clk 0:02:19]}  Ne4 {[%clk 0:02:33]} 13. Qd3 {[%clk 0:01:58]}  Nb4 {[%clk 0:02:30]} 14. Qe3 {[%clk 0:01:51]}  Nc2 {[%clk 0:02:29]} 15. Qc1 {[%clk 0:01:52]}  Nxa1 {[%clk 0:02:29]} 16. Nxe4 {[%clk 0:01:51]}  fxe4 {[%clk 0:02:25]} 17. Ng5 {[%clk 0:01:49]}  Nxb3 {[%clk 0:02:18]} 18. axb3 {[%clk 0:01:50]}  Bxb2 {[%clk 0:02:19]} 19. Qxb2 {[%clk 0:01:50]}  Bf5 {[%clk 0:02:18]} 20. b4 {[%clk 0:01:33]}  Qe7 {[%clk 0:02:17]} 21. h4 {[%clk 0:01:31]}  Rad8 {[%clk 0:02:15]} 22. Ra1 {[%clk 0:01:08]}  a6 {[%clk 0:02:12]} 23. b5 {[%clk 0:01:08]}  axb5 {[%clk 0:02:09]} 24. cxb5 {[%clk 0:01:09]}  h6 {[%clk 0:02:07]} 25. Nh3 {[%clk 0:01:00]}  Qf6 {[%clk 0:02:01]} 26. Qxf6 {[%clk 0:00:58]}  Rxf6 {[%clk 0:02:02]} 27. bxc6 {[%clk 0:00:59]}  bxc6 {[%clk 0:01:59]} 28. Nf4 {[%clk 0:00:59]}  c5 {[%clk 0:01:56]} 29. Rc1 {[%clk 0:00:58]}  Rc6 {[%clk 0:01:53]} 30. g4 {[%clk 0:00:57]}  g5 {[%clk 0:01:43]} 31. hxg5 {[%clk 0:00:45]}  hxg5 {[%clk 0:01:44]} 32. Nh3 {[%clk 0:00:32]}  Bxg4 {[%clk 0:01:43]} 33. Nxg5 {[%clk 0:00:32]}  c4 {[%clk 0:01:31]} 34. Nxe4 {[%clk 0:00:26]}  Kg7 {[%clk 0:01:16]} 35. e3 {[%clk 0:00:19]}  Rc7 {[%clk 0:01:11]} 36. Nc3 {[%clk 0:00:18]}  Be6 {[%clk 0:01:07]} 37. f4 {[%clk 0:00:15]}  Rd3 {[%clk 0:01:06]} 38. e4 {[%clk 0:00:13]}  Ra7 {[%clk 0:01:02]} 39. f5 {[%clk 0:00:14]}  Bd7 {[%clk 0:00:45]} 40. Bf1 {[%clk 0:00:13]}  Rd2 {[%clk 0:00:39]} 41. Nd5 {[%clk 0:00:10]}  Bb5 {[%clk 0:00:37]} 42. e5 {[%clk 0:00:09]}  Rxd5 {[%clk 0:00:35]} 43. f6+ {[%clk 0:00:07]}  Kf7 {[%clk 0:00:34]} 44. Re1 {[%clk 0:00:07]}  Ra6 {[%clk 0:00:31]} 45. Bg2 {[%clk 0:00:05]}  Rd4 {[%clk 0:00:29]} 46. e6+ {[%clk 0:00:05]}  Rxe6 {[%clk 0:00:28]} 0-1


[Site "https://www.chess.com"]

[Event "Titled Tuesday Blitz January 17 Early 2023"]
[White "Dwilewicz, Katarzyna"]
[Black "Agasarov, Benik"]
[WhiteFideId "1148486"]
[BlackFideId "13314823"]
[WhiteElo "2115"]
[BlackElo "2235"]
[Result "1-0"]
[Round "01"]
[TimeControl "180+2"]
[Date "2023.01.17"]
[WhiteClock "0:00:16"]
[BlackClock "0:00:03"]

1. e4 {[%clk 0:02:59]}  c5 {[%clk 0:02:55]} 2. Nf3 {[%clk 0:02:59]}  d6 {[%clk 0:02:54]} 3. d4 {[%clk 0:02:57]}  cxd4 {[%clk 0:02:55]} 4. Nxd4 {[%clk 0:02:57]}  Nf6 {[%clk 0:02:55]} 5. Nc3 {[%clk 0:02:58]}  a6 {[%clk 0:02:55]} 6. h3 {[%clk 0:02:58]}  e5 {[%clk 0:02:54]} 7. Nde2 {[%clk 0:02:58]}  h5 {[%clk 0:02:54]} 8. Bg5 {[%clk 0:02:57]}  Be6 {[%clk 0:02:37]} 9. Bxf6 {[%clk 0:02:57]}  Qxf6 {[%clk 0:02:38]} 10. Nd5 {[%clk 0:02:57]}  Qd8 {[%clk 0:02:38]} 11. Qd3 {[%clk 0:02:57]}  Nd7 {[%clk 0:02:26]} 12. O-O-O {[%clk 0:02:57]}  Nc5 {[%clk 0:02:20]} 13. Qf3 {[%clk 0:02:56]}  Bxd5 {[%clk 0:02:15]} 14. Rxd5 {[%clk 0:02:54]}  Qa5 {[%clk 0:02:14]} 15. Nc3 {[%clk 0:02:41]}  Be7 {[%clk 0:02:13]} 16. Kb1 {[%clk 0:02:38]}  Rc8 {[%clk 0:02:02]} 17. Be2 {[%clk 0:02:36]}  Qb4 {[%clk 0:01:57]} 18. a3 {[%clk 0:02:26]}  Qb6 {[%clk 0:01:57]} 19. Rd2 {[%clk 0:02:23]}  Bg5 {[%clk 0:01:44]} 20. Nd5 {[%clk 0:02:08]}  Qc6 {[%clk 0:01:41]} 21. Rdd1 {[%clk 0:02:03]}  Ne6 {[%clk 0:01:41]} 22. c3 {[%clk 0:01:59]}  h4 {[%clk 0:01:34]} 23. g3 {[%clk 0:01:57]}  g6 {[%clk 0:01:15]} 24. Ka2 {[%clk 0:01:31]}  b5 {[%clk 0:00:56]} 25. Nb4 {[%clk 0:01:29]}  Qb6 {[%clk 0:00:52]} 26. Nd5 {[%clk 0:01:27]}  Qb7 {[%clk 0:00:49]} 27. Qg4 {[%clk 0:01:06]}  O-O {[%clk 0:00:44]} 28. f4 {[%clk 0:01:00]}  exf4 {[%clk 0:00:41]} 29. gxf4 {[%clk 0:01:00]}  Bd8 {[%clk 0:00:29]} 30. f5 {[%clk 0:00:59]}  Ng7 {[%clk 0:00:29]} 31. fxg6 {[%clk 0:00:56]}  fxg6 {[%clk 0:00:29]} 32. Qxg6 {[%clk 0:00:57]}  Qf7 {[%clk 0:00:29]} 33. Rhg1 {[%clk 0:00:54]}  Qxg6 {[%clk 0:00:29]} 34. Rxg6 {[%clk 0:00:55]}  Kh7 {[%clk 0:00:26]} 35. Rdg1 {[%clk 0:00:55]}  Rf7 {[%clk 0:00:23]} 36. Rxd6 {[%clk 0:00:50]}  Be7 {[%clk 0:00:15]} 37. Rd7 {[%clk 0:00:47]}  Re8 {[%clk 0:00:12]} 38. Bd3 {[%clk 0:00:47]}  Kh8 {[%clk 0:00:11]} 39. Rg4 {[%clk 0:00:42]}  Kg8 {[%clk 0:00:06]} 40. Nxe7+ {[%clk 0:00:42]}  Rexe7 {[%clk 0:00:06]} 41. Rxe7 {[%clk 0:00:42]}  Rxe7 {[%clk 0:00:07]} 42. Rxh4 {[%clk 0:00:43]}  Kf8 {[%clk 0:00:08]} 43. Rh6 {[%clk 0:00:42]}  Ne6 {[%clk 0:00:07]} 44. Rf6+ {[%clk 0:00:39]}  Kg7 {[%clk 0:00:07]} 45. Rf5 {[%clk 0:00:38]}  Rd7 {[%clk 0:00:08]} 46. Bc2 {[%clk 0:00:36]}  Rd2 {[%clk 0:00:07]} 47. Bb3 {[%clk 0:00:36]}  Nd8 {[%clk 0:00:08]} 48. Bd5 {[%clk 0:00:35]}  Rh2 {[%clk 0:00:05]} 49. Rg5+ {[%clk 0:00:31]}  Kf6 {[%clk 0:00:05]} 50. Rf5+ {[%clk 0:00:31]}  Ke7 {[%clk 0:00:06]} 51. Rf3 {[%clk 0:00:30]}  Kd6 {[%clk 0:00:05]} 52. Kb3 {[%clk 0:00:27]}  a5 {[%clk 0:00:05]} 53. c4 {[%clk 0:00:25]}  bxc4+ {[%clk 0:00:04]} 54. Bxc4 {[%clk 0:00:25]}  Nc6 {[%clk 0:00:04]} 55. Rd3+ {[%clk 0:00:25]}  Kc5 {[%clk 0:00:04]} 56. Rd5+ {[%clk 0:00:25]}  Kb6 {[%clk 0:00:05]} 57. Rb5+ {[%clk 0:00:25]}  Kc7 {[%clk 0:00:06]} 58. Rh5 {[%clk 0:00:22]}  Nd4+ {[%clk 0:00:06]} 59. Kc3 {[%clk 0:00:20]}  Nc6 {[%clk 0:00:05]} 60. b4 {[%clk 0:00:19]}  axb4+ {[%clk 0:00:05]} 61. axb4 {[%clk 0:00:20]}  Kb6 {[%clk 0:00:03]} 62. Rb5+ {[%clk 0:00:19]}  Kc7 {[%clk 0:00:03]} 63. Rh5 {[%clk 0:00:19]}  Kb6 {[%clk 0:00:03]} 64. b5 {[%clk 0:00:18]}  Na5 {[%clk 0:00:04]} 65. Rh6+ {[%clk 0:00:17]}  Kc5 {[%clk 0:00:04]} 66. Rh5+ {[%clk 0:00:18]}  Kb6 {[%clk 0:00:04]} 67. Bd3 {[%clk 0:00:18]}  Ra2 {[%clk 0:00:04]} 68. Kd4 {[%clk 0:00:17]}  Nb3+ {[%clk 0:00:04]} 69. Ke3 {[%clk 0:00:17]}  Nc5 {[%clk 0:00:04]} 70. Rh6+ {[%clk 0:00:18]}  Ka5 {[%clk 0:00:05]} 71. e5 {[%clk 0:00:18]}  Ra3 {[%clk 0:00:05]} 72. Rd6 {[%clk 0:00:18]}  Ra1 {[%clk 0:00:03]} 73. e6 {[%clk 0:00:17]}  Re1+ {[%clk 0:00:03]} 74. Be2 {[%clk 0:00:18]}  Rg1 {[%clk 0:00:02]} 75. e7 {[%clk 0:00:17]}  Rg8 {[%clk 0:00:02]} 76. Rd8 {[%clk 0:00:17]}  Rg7 {[%clk 0:00:01]} 77. e8=Q {[%clk 0:00:17]}  Nb7 {[%clk 0:00:02]} 78. Ra8+ {[%clk 0:00:16]}  Kb4 {[%clk 0:00:03]} 79. Qe4+ {[%clk 0:00:16]}  Kc5 {[%clk 0:00:03]} 80. Rc8+ {[%clk 0:00:16]}  Kb6 {[%clk 0:00:03]} 81. Qd4+ {[%clk 0:00:17]}  Ka5 {[%clk 0:00:03]} 82. Ra8# {[%clk 0:00:16]} 1-0


[Site "https://www.chess.com"]

[Event "Titled Tuesday Blitz January 17 Early 2023"]
[White "Jiganchine, Roman"]
[Black "Weetik, Vjacheslav"]
[WhiteFideId "2603667"]
[BlackFideId "4153472"]
[WhiteElo "2205"]
[BlackElo "2423"]
[Result "0-1"]
[Round "01"]
[TimeControl "180+2"]
[Date "2023.01.17"]
[WhiteClock "0:00:03"]
[BlackClock "0:00:05"]

1. e4 {[%clk 0:03:00]}  c6 {[%clk 0:02:59]} 2. d4 {[%clk 0:02:59]}  d5 {[%clk 0:02:59]} 3. exd5 {[%clk 0:03:00]}  cxd5 {[%clk 0:02:59]} 4. Nf3 {[%clk 0:03:00]}  Bg4 {[%clk 0:02:55]} 5. c3 {[%clk 0:02:58]}  Nc6 {[%clk 0:02:36]} 6. Qb3 {[%clk 0:02:45]}  Qc7 {[%clk 0:01:26]} 7. Qxd5 {[%clk 0:02:23]}  Nf6 {[%clk 0:01:26]} 8. Qg5 {[%clk 0:02:18]}  Bxf3 {[%clk 0:01:25]} 9. gxf3 {[%clk 0:02:18]}  O-O-O {[%clk 0:00:59]} 10. Na3 {[%clk 0:02:17]}  e5 {[%clk 0:00:54]} 11. Nb5 {[%clk 0:02:11]}  Qe7 {[%clk 0:00:41]} 12. Bh3+ {[%clk 0:01:56]}  Kb8 {[%clk 0:00:41]} 13. Qg3 {[%clk 0:01:54]}  a6 {[%clk 0:00:39]} 14. a4 {[%clk 0:01:40]}  Nh5 {[%clk 0:00:33]} 15. Qg4 {[%clk 0:01:33]}  g6 {[%clk 0:00:33]} 16. O-O {[%clk 0:01:15]}  axb5 {[%clk 0:00:18]} 17. axb5 {[%clk 0:01:14]}  Nxd4 {[%clk 0:00:13]} 18. cxd4 {[%clk 0:01:08]}  f5 {[%clk 0:00:14]} 19. Qg5 {[%clk 0:01:02]}  Rxd4 {[%clk 0:00:13]} 20. Qxe7 {[%clk 0:00:54]}  Bxe7 {[%clk 0:00:13]} 21. Be3 {[%clk 0:00:55]}  Nf4 {[%clk 0:00:11]} 22. Bg2 {[%clk 0:00:34]}  Bc5 {[%clk 0:00:11]} 23. Kh1 {[%clk 0:00:29]}  Rhd8 {[%clk 0:00:11]} 24. Rfc1 {[%clk 0:00:21]}  Bb6 {[%clk 0:00:08]} 25. Bxd4 {[%clk 0:00:20]}  exd4 {[%clk 0:00:07]} 26. Bf1 {[%clk 0:00:18]}  d3 {[%clk 0:00:08]} 27. Rd1 {[%clk 0:00:18]}  Bxf2 {[%clk 0:00:07]} 28. b3 {[%clk 0:00:17]}  Be3 {[%clk 0:00:06]} 29. b4 {[%clk 0:00:14]}  d2 {[%clk 0:00:07]} 30. Ra3 {[%clk 0:00:14]}  Bb6 {[%clk 0:00:05]} 31. Ra2 {[%clk 0:00:10]}  Be3 {[%clk 0:00:05]} 32. Ra3 {[%clk 0:00:10]}  Re8 {[%clk 0:00:05]} 33. Ra2 {[%clk 0:00:06]}  Kc7 {[%clk 0:00:04]} 34. Rc2+ {[%clk 0:00:06]}  Kb6 {[%clk 0:00:04]} 35. Rc3 {[%clk 0:00:04]}  Re5 {[%clk 0:00:04]} 36. Rxe3 {[%clk 0:00:03]}  Rxe3 {[%clk 0:00:04]} 37. Rxd2 {[%clk 0:00:03]}  Rxf3 {[%clk 0:00:03]} 38. Bg2 {[%clk 0:00:03]}  Rb3 {[%clk 0:00:04]} 39. Rd6+ {[%clk 0:00:02]}  Kxb5 {[%clk 0:00:04]} 40. h4 {[%clk 0:00:01]}  b6 {[%clk 0:00:03]} 41. Rd7 {[%clk 0:00:01]}  Rxb4 {[%clk 0:00:03]} 42. Rxh7 {[%clk 0:00:01]}  Nxg2 {[%clk 0:00:03]} 43. Kxg2 {[%clk 0:00:01]}  Rg4+ {[%clk 0:00:04]} 44. Kf2 {[%clk 0:00:01]}  Kb4 {[%clk 0:00:04]} 45. h5 {[%clk 0:00:02]}  gxh5 {[%clk 0:00:04]} 46. Rxh5 {[%clk 0:00:02]}  Re4 {[%clk 0:00:04]} 47. Rxf5 {[%clk 0:00:02]}  b5 {[%clk 0:00:04]} 48. Kf3 {[%clk 0:00:02]}  Re8 {[%clk 0:00:05]} 49. Rd5 {[%clk 0:00:02]}  Kc4 {[%clk 0:00:05]} 50. Rd7 {[%clk 0:00:02]}  b4 {[%clk 0:00:05]} 51. Rd1 {[%clk 0:00:03]}  b3 {[%clk 0:00:05]} 0-1


[Site "https://www.chess.com"]

[Event "Titled Tuesday Blitz January 17 Early 2023"]
[White "Vlassov, Nikolai"]
[Black "Levitan, Caleb Levi"]
[WhiteFideId "4103360"]
[BlackFideId "14332620"]
[WhiteElo "2283"]
[BlackElo "2129"]
[Result "1-0"]
[Round "01"]
[TimeControl "180+2"]
[Date "2023.01.17"]
[WhiteClock "0:00:23"]
[BlackClock "0:00:03"]

1. e4 {[%clk 0:02:57]}  c5 {[%clk 0:02:59]} 2. c3 {[%clk 0:02:57]}  Nf6 {[%clk 0:02:51]} 3. e5 {[%clk 0:02:57]}  Nd5 {[%clk 0:02:51]} 4. d4 {[%clk 0:02:57]}  cxd4 {[%clk 0:02:46]} 5. cxd4 {[%clk 0:02:56]}  d6 {[%clk 0:02:45]} 6. Bc4 {[%clk 0:02:54]}  Nb6 {[%clk 0:02:42]} 7. Bb3 {[%clk 0:02:54]}  dxe5 {[%clk 0:02:39]} 8. Qh5 {[%clk 0:02:53]}  e6 {[%clk 0:02:24]} 9. dxe5 {[%clk 0:02:52]}  Bb4+ {[%clk 0:02:14]} 10. Nc3 {[%clk 0:02:52]}  Qc7 {[%clk 0:01:57]} 11. Ne2 {[%clk 0:02:47]}  Nc6 {[%clk 0:01:56]} 12. Bf4 {[%clk 0:02:43]}  O-O {[%clk 0:01:41]} 13. h4 {[%clk 0:02:30]}  Nd4 {[%clk 0:01:24]} 14. O-O {[%clk 0:02:03]}  Nxb3 {[%clk 0:01:20]} 15. axb3 {[%clk 0:02:00]}  Nd5 {[%clk 0:01:20]} 16. Nxd5 {[%clk 0:01:35]}  exd5 {[%clk 0:01:19]} 17. Nd4 {[%clk 0:01:35]}  Be6 {[%clk 0:01:14]} 18. Rac1 {[%clk 0:01:25]}  Qd7 {[%clk 0:01:13]} 19. Qg5 {[%clk 0:01:11]}  Rac8 {[%clk 0:01:04]} 20. h5 {[%clk 0:01:11]}  Be7 {[%clk 0:00:36]} 21. Qg3 {[%clk 0:01:11]}  f6 {[%clk 0:00:16]} 22. exf6 {[%clk 0:01:06]}  Bxf6 {[%clk 0:00:15]} 23. Be5 {[%clk 0:01:06]}  Rxc1 {[%clk 0:00:14]} 24. Rxc1 {[%clk 0:01:05]}  Bxe5 {[%clk 0:00:12]} 25. Qxe5 {[%clk 0:01:05]}  Bf7 {[%clk 0:00:11]} 26. h6 {[%clk 0:00:52]}  Qg4 {[%clk 0:00:09]} 27. Nf5 {[%clk 0:00:43]}  Re8 {[%clk 0:00:03]} 28. Qxg7+ {[%clk 0:00:32]}  Qxg7 {[%clk 0:00:04]} 29. hxg7 {[%clk 0:00:32]}  Re2 {[%clk 0:00:03]} 30. Rc7 {[%clk 0:00:24]}  Be8 {[%clk 0:00:03]} 31. Nh6# {[%clk 0:00:23]} 1-0


[Site "https://www.chess.com"]

[Event "Titled Tuesday Blitz January 17 Early 2023"]
[White "Carrasco Miranda, Andres"]
[Black "Bocharov, Dmitry"]
[WhiteFideId "3405990"]
[BlackFideId "4138716"]
[WhiteElo "2240"]
[BlackElo "2516"]
[Result "0-1"]
[Round "01"]
[TimeControl "180+2"]
[Date "2023.01.17"]
[WhiteClock "0:00:42"]
[BlackClock "0:01:03"]

1. d4 {[%clk 0:02:52]}  Nf6 {[%clk 0:02:59]} 2. c4 {[%clk 0:02:41]}  e6 {[%clk 0:02:59]} 3. g3 {[%clk 0:02:40]}  d5 {[%clk 0:02:58]} 4. Bg2 {[%clk 0:02:38]}  dxc4 {[%clk 0:02:47]} 5. Nf3 {[%clk 0:02:37]}  c6 {[%clk 0:02:46]} 6. Ne5 {[%clk 0:02:35]}  Bb4+ {[%clk 0:02:44]} 7. Bd2 {[%clk 0:02:35]}  Be7 {[%clk 0:02:43]} 8. e3 {[%clk 0:02:27]}  b5 {[%clk 0:02:43]} 9. Nxc6 {[%clk 0:02:21]}  Nxc6 {[%clk 0:02:43]} 10. Bxc6+ {[%clk 0:02:22]}  Bd7 {[%clk 0:02:44]} 11. Bg2 {[%clk 0:02:18]}  O-O {[%clk 0:02:42]} 12. O-O {[%clk 0:02:18]}  Rc8 {[%clk 0:02:41]} 13. a3 {[%clk 0:02:14]}  Bc6 {[%clk 0:02:40]} 14. Bxc6 {[%clk 0:02:09]}  Rxc6 {[%clk 0:02:41]} 15. Nc3 {[%clk 0:02:08]}  a6 {[%clk 0:02:42]} 16. Qf3 {[%clk 0:02:08]}  Qd7 {[%clk 0:02:40]} 17. Rad1 {[%clk 0:02:07]}  Rb8 {[%clk 0:02:35]} 18. Bc1 {[%clk 0:02:05]}  Rd6 {[%clk 0:02:27]} 19. e4 {[%clk 0:02:05]}  Rxd4 {[%clk 0:02:22]} 20. e5 {[%clk 0:01:57]}  Rxd1 {[%clk 0:02:18]} 21. Rxd1 {[%clk 0:01:58]}  Nd5 {[%clk 0:02:18]} 22. Nxd5 {[%clk 0:01:57]}  exd5 {[%clk 0:02:18]} 23. Rxd5 {[%clk 0:01:57]}  Qe6 {[%clk 0:02:18]} 24. Qe4 {[%clk 0:01:51]}  h5 {[%clk 0:02:13]} 25. f4 {[%clk 0:01:49]}  Rd8 {[%clk 0:02:11]} 26. Rxd8+ {[%clk 0:01:47]}  Bxd8 {[%clk 0:02:11]} 27. Be3 {[%clk 0:01:48]}  g6 {[%clk 0:02:08]} 28. Kg2 {[%clk 0:01:44]}  Be7 {[%clk 0:01:59]} 29. Bd4 {[%clk 0:01:33]}  Qg4 {[%clk 0:01:54]} 30. Qa8+ {[%clk 0:01:23]}  Kg7 {[%clk 0:01:54]} 31. Qd5 {[%clk 0:01:18]}  Qe2+ {[%clk 0:01:52]} 32. Kg1 {[%clk 0:01:13]}  Qd1+ {[%clk 0:01:21]} 33. Kg2 {[%clk 0:01:11]}  Qe2+ {[%clk 0:01:21]} 34. Kg1 {[%clk 0:01:11]}  h4 {[%clk 0:01:03]} 35. e6+ {[%clk 0:01:10]}  Kh7 {[%clk 0:01:04]} 36. exf7 {[%clk 0:00:57]}  h3 {[%clk 0:01:04]} 37. Bf2 {[%clk 0:00:42]}  Bc5 {[%clk 0:01:03]} 0-1


[Site "https://www.chess.com"]